bitfinex-derivatives/quotes_BTCF0:USTF0_20250405
["timestamp","ask_amount","ask_price","bid_price","bid_amount"]
[1743817145802,0.0832233,84143.0,84142.0,0.15022801]
[1743817146004,0.083214,84153.0,84142.0,0.23345221]
[1743817146206,0.0416033,84160.0,84142.0,0.23345221]
[1743817146207,0.1218062,84154.0,84148.0,0.3608]
[1743817146403,0.1634129,84154.0,84149.0,0.2295]
[1743817146606,0.08164,84154.0,84149.0,0.2295]
[1743817146822,0.0416067,84153.0,84149.0,0.2295]
[1743817147118,0.0832146,84152.0,84149.0,0.2295]
[1743817147515,0.00017819,84155.0,84150.0,0.05088]
[1743817147718,0.03366901,84165.0,84151.0,0.1526]
[1743817147918,0.0832055,84161.0,84160.0,0.3608]
[1743817149525,0.15667819,84169.0,84160.0,0.3608]
[1743817149526,0.083202,84165.0,84160.0,0.3608]
[1743817149724,0.00144,84165.0,84161.0,0.2341]
[1743817149921,0.00144,84165.0,84161.0,0.3173054]
[1743817150113,0.00144,84165.0,84164.0,0.0832025]
[1743817150317,0.00017819,84169.0,84165.0,0.0832008]
[1743817150518,0.00017819,84169.0,84168.0,0.4439986]
[1743817150814,0.00017819,84169.0,84168.0,0.3608]
[1743817151014,0.00017819,84169.0,84168.0,0.4394]
[1743817154824,0.0015782,84169.0,84168.0,0.4394]
[1743817155124,0.0015782,84169.0,84168.0,0.5225986]
[1743817155915,0.0015782,84169.0,84168.0,0.4394]
[1743817156825,0.0015782,84169.0,84168.0,0.5166]
[1743817158524,0.0847758,84169.0,84168.0,0.49028]
[1743817159018,0.0015782,84169.0,84168.0,0.49028]
[1743817159224,0.2406758,84169.0,84168.0,0.49028]
[1743817159419,0.15607819,84169.0,84168.0,0.49028]
[1743817159620,0.23927579,84169.0,84168.0,0.49028]
[1743817160023,0.23927579,84169.0,84168.0,0.5734786]
[1743817160024,0.00017819,84169.0,84168.0,0.5734786]
[1743817160522,0.00017819,84169.0,84168.0,0.6543786]
[1743817165528,0.0015782,84169.0,84168.0,0.6543786]
[1743817168236,0.0015782,84169.0,84168.0,0.3608]
[1743817168538,0.0847758,84169.0,84168.0,0.41168]
[1743817169430,0.1641758,84169.0,84168.0,0.41168]
[1743817170329,0.1641758,84169.0,84168.0,0.3608]
[1743817172731,0.083199,84168.0,84166.0,0.12578]
[1743817172937,0.157999,84168.0,84167.0,0.3608]
[1743817173629,0.157999,84168.0,84167.0,0.4362]
[1743817174032,0.157999,84168.0,84167.0,0.3608]
[1743817174432,0.15939901,84168.0,84167.0,0.3608]
[1743817175535,0.07620001,84168.0,84167.0,0.3608]
[1743817176440,0.15939861,84168.0,84167.0,0.3608]
[1743817181840,0.00140001,84168.0,84167.0,0.4439995]
[1743817182045,0.00017819,84169.0,84168.0,0.0831986]
[1743817182238,0.00017819,84169.0,84168.0,0.2337986]
[1743817203569,0.0793,84176.0,84175.0,0.0831916]
[1743817203857,0.0415821,84203.0,84175.0,0.41168]
[1743817204060,0.0777,84199.0,84198.0,0.3608]
[1743817204257,0.1608679,84199.0,84198.0,0.33226343]
[1743817204463,0.2401679,84199.0,84198.0,0.31740108]
[1743817204849,0.2401679,84199.0,84198.0,0.34925911]
[1743817205053,0.2411679,84199.0,84198.0,0.34989911]
[1743817205254,0.2411679,84199.0,84198.0,0.3588581]
[1743817210368,0.2411679,84199.0,84198.0,0.04145702]
[1743817210671,0.2411679,84199.0,84198.0,0.04081702]
[1743817210863,0.0831748,84192.0,84191.0,0.3608]
[1743817211461,0.08413481,84192.0,84191.0,0.3608]
[1743817211659,0.0831758,84191.0,84190.0,0.00017819]
[1743817212061,0.2431758,84191.0,84190.0,0.00017819]
[1743817214262,0.2431758,84191.0,84190.0,0.04062046]
[1743817214570,0.2431758,84191.0,84190.0,0.03159013]
[1743817214770,0.2431758,84191.0,84190.0,0.01672534]
[1743817214975,0.0831788,84188.0,84187.0,8e-05]
[1743817215766,0.0831857,84181.0,84180.0,0.05084]
[1743817215967,0.0831857,84181.0,84180.0,0.08159228]
[1743817216459,0.08422571,84181.0,84180.0,0.08227228]
[1743817216770,0.23822571,84181.0,84180.0,0.08227228]
[1743817217675,0.23822571,84181.0,84180.0,0.09132142]
[1743817219878,0.23822571,84181.0,84180.0,0.45212142]
[1743817221078,0.23822571,84181.0,84180.0,0.53322142]
[1743817221974,0.23822571,84181.0,84180.0,0.09132142]
[1743817222176,0.23822571,84181.0,84180.0,0.45212142]
[1743817222778,0.23822571,84181.0,84180.0,0.40128142]
[1743817223075,0.23822571,84181.0,84180.0,0.45384093]
[1743817225077,0.0831867,84180.0,84179.0,0.00025819]
[1743817225281,0.0831956,84171.0,84170.0,0.4423]
[1743817226077,0.2344956,84171.0,84170.0,0.4423]
[1743817226274,0.2356556,84171.0,84170.0,0.4423]
[1743817226882,0.2356556,84171.0,84170.0,0.0815]
[1743817227082,0.2356556,84171.0,84170.0,0.4423]
[1743817227284,0.2356556,84171.0,84170.0,0.47383782]
[1743817227985,0.2356556,84171.0,84170.0,0.11303782]
[1743817228176,0.2356556,84171.0,84170.0,0.48285218]
[1743817231178,0.2356556,84171.0,84170.0,0.12205218]
[1743817233680,0.2356556,84171.0,84170.0,0.10718449]
[1743817234392,0.0831976,84169.0,84168.0,8e-05]
[1743817235092,0.23583761,84169.0,84168.0,0.00132]
[1743817236795,0.00124001,84169.0,84168.0,0.04138358]
[1743817236997,0.0831976,84169.0,84168.0,0.04138358]
[1743817237186,0.0831976,84169.0,84168.0,0.11968358]
[1743817237589,0.08443761,84169.0,84168.0,0.11968358]
[1743817237786,0.08443761,84169.0,84168.0,0.12882713]
[1743817237987,0.0831976,84169.0,84168.0,0.12882713]
[1743817238189,0.0843576,84169.0,84168.0,0.12882713]
[1743817242999,0.0843576,84169.0,84168.0,0.20472713]
[1743817249314,0.0804,84172.0,84168.0,0.20472713]
[1743817250004,0.0804,84172.0,84171.0,0.0831956]
[1743817250209,0.0812,84172.0,84171.0,0.0838756]
[1743817250913,0.0812,84172.0,84171.0,0.2387756]
[1743817253407,0.0812,84172.0,84171.0,0.22390871]
[1743817253808,0.0812,84172.0,84171.0,0.14860871]
[1743817254010,0.0812,84172.0,84171.0,0.08028]
[1743817254707,0.0812,84172.0,84171.0,0.2395756]
[1743817254920,0.0812,84172.0,84171.0,0.15638]
[1743817255517,0.0812,84172.0,84171.0,0.2395756]
[1743817256322,0.0008,84172.0,84171.0,0.2395756]
[1743817256508,0.1504,84188.0,84178.0,0.0415942]
[1743817256713,0.1504,84188.0,84183.0,0.3608]
[1743817257016,0.083181,84186.0,84184.0,0.0746]
[1743817257415,0.0768,84185.0,84184.0,0.0746]
[1743817257820,0.00017819,84189.0,84186.0,0.0415899]
[1743817258021,0.0768,84198.0,84191.0,0.0415879]
[1743817258217,0.0768,84198.0,84195.0,0.0831711]
[1743817258514,0.0768,84198.0,84197.0,0.3608]
[1743817258923,0.0768,84198.0,84197.0,0.4368]
[1743817260015,8e-05,84204.0,84197.0,0.4368]
[1743817260016,0.0415747,84218.0,84203.0,0.0415818]
[1743817260220,0.0768,84214.0,84209.0,0.3608]
[1743817260413,0.0748,84213.0,84210.0,0.0791]
[1743817260610,0.07548,84213.0,84210.0,0.0797]
[1743817260917,0.0768,84212.0,84210.0,0.1628568]
[1743817261121,0.05799957,84212.0,84211.0,0.0831561]
[1743817261421,8e-05,84217.0,84214.0,0.0831528]
[1743817261623,8e-05,84217.0,84215.0,0.1538]
[1743817261819,8e-05,84217.0,84215.0,0.1544]
[1743817262219,8e-05,84217.0,84216.0,0.3608]
[1743817262416,8e-05,84217.0,84216.0,0.36144]
[1743817262624,8e-05,84217.0,84216.0,0.44054]
[1743817263528,8e-05,84217.0,84216.0,0.44939035]
[1743817263716,8e-05,84217.0,84216.0,0.48908748]
[1743817264416,0.3608,84240.0,84216.0,0.63908748]
[1743817264620,0.1598,84239.0,84238.0,0.3608]
[1743817264919,0.16040001,84239.0,84238.0,0.3614]
[1743817265525,0.24352841,84239.0,84238.0,0.3614]
[1743817268829,0.16040001,84239.0,84238.0,0.3614]
[1743817276228,0.00060001,84239.0,84238.0,0.4445294]
[1743817276529,0.00017806,84247.0,84238.0,0.4445294]
[1743817276530,8e-05,84243.0,84239.0,0.0831283]
[1743817276724,0.00068001,84243.0,84239.0,0.1625283]
[1743817276924,0.00068001,84243.0,84239.0,0.1631283]
[1743817277127,0.15128001,84243.0,84239.0,0.1631283]
[1743817277834,0.15128001,84243.0,84239.0,0.0006]
[1743817278032,0.0831274,84240.0,84239.0,0.0006]
[1743817278230,0.44452741,84240.0,84239.0,0.0006]
[1743817278537,0.0831294,84238.0,84237.0,0.0508]
[1743817278836,0.0838094,84238.0,84237.0,0.0508]
[1743817279036,0.0838094,84238.0,84232.0,0.0508]
[1743817279237,0.0831327,84235.0,84232.0,0.0514]
[1743817279538,0.0831344,84233.0,84232.0,0.0006]
[1743817279839,0.08373441,84233.0,84232.0,0.0006]
[1743817280136,0.23433441,84233.0,84232.0,0.0006]
[1743817281737,0.15120001,84233.0,84232.0,0.0006]
[1743817282441,0.15120001,84233.0,84232.0,0.0754]
[1743817283544,0.23433441,84233.0,84232.0,0.0754]
[1743817284432,0.23433441,84233.0,84232.0,0.0006]
[1743817291937,0.23433441,84233.0,84229.0,0.4239218]
[1743817292138,0.23433441,84233.0,84230.0,0.0753]
[1743817292339,0.0831363,84231.0,84230.0,0.0759]
[1743817292542,0.0839363,84231.0,84230.0,0.0759]
[1743817293137,0.2389363,84231.0,84230.0,0.0759]
[1743817293544,0.1558,84231.0,84230.0,0.0759]
[1743817299853,0.3305729,84243.0,84230.0,0.0759]
[1743817300146,8e-05,84233.0,84232.0,0.0831347]
[1743817300351,8e-05,84233.0,84232.0,0.3149747]
[1743817302452,8e-05,84233.0,84232.0,0.30011887]
[1743817304855,0.0799,84242.0,84236.0,0.1662621]
[1743817305043,0.07514,84238.0,84237.0,0.5169]
[1743817305245,0.07514,84238.0,84237.0,0.51754]
[1743817305744,0.0745,84238.0,84237.0,0.6006704]
[1743817306155,0.07518,84238.0,84237.0,0.6006704]
[1743817306455,0.0745,84238.0,84237.0,0.6006704]
[1743817307043,0.07514,84238.0,84237.0,0.6006704]
[1743817307248,0.07514,84238.0,84237.0,0.51754]
[1743817312657,0.0745,84238.0,84237.0,0.51754]
[1743817313262,0.07514,84238.0,84237.0,0.51754]
[1743817314962,0.0832065,84241.0,84237.0,0.51754]
[1743817314963,8e-05,84241.0,84239.0,0.0831284]
[1743817315162,0.0775,84245.0,84240.0,0.1271]
[1743817315363,0.0782,84244.0,84243.0,0.0831245]
[1743817315550,0.07904,84244.0,84243.0,0.0840045]
[1743817315755,0.07904,84244.0,84243.0,0.07718]
[1743817315957,0.07904,84244.0,84243.0,0.00088]
[1743817316165,0.07904,84244.0,84242.0,0.06915057]
[1743817316464,0.07904,84244.0,84242.0,0.0769]
[1743817316865,0.0782,84244.0,84242.0,0.1600253]
[1743817317065,0.0782,84244.0,84242.0,0.1594253]
[1743817318155,0.0782,84244.0,84243.0,0.0776]
[1743817318563,0.0782,84244.0,84243.0,0.1548]
[1743817320460,0.0782,84244.0,84243.0,0.0776]
[1743817322069,0.07884,84244.0,84243.0,0.43904]
[1743817323368,0.1613235,84244.0,84243.0,0.43904]
[1743817323562,0.16192351,84244.0,84243.0,0.43904]
[1743817323965,0.16192351,84244.0,84243.0,0.07824]
[1743817324272,0.16192351,84244.0,84243.0,0.43904]
[1743817326572,0.16192351,84244.0,84243.0,0.42418642]
[1743817327475,0.16192351,84244.0,84243.0,0.39566754]
[1743817328373,0.16192351,84244.0,84243.0,0.36144]
[1743817334478,0.16192351,84244.0,84243.0,0.00064]
[1743817334667,0.0415637,84240.0,84227.0,0.4116]
[1743817334867,0.1998642,84239.0,84227.0,0.4122]
[1743817335077,0.2803242,84239.0,84227.0,0.4953402]
[1743817335377,0.0831387,84229.0,84227.0,0.4953402]
[1743817335577,0.0831387,84229.0,84228.0,0.0802]
[1743817335777,0.0831387,84229.0,84228.0,0.08088]
[1743817338281,0.0838987,84229.0,84228.0,0.00068]
[1743817338584,0.0831442,84223.0,84222.0,0.00017806]
[1743817338765,0.08410421,84223.0,84222.0,0.00077806]
[1743817339080,0.08410421,84223.0,84222.0,0.00017806]
[1743817339388,0.08410421,84223.0,84222.0,0.0001007]
[1743817339577,0.0831501,84217.0,84216.0,0.03378872]
[1743817339781,0.0831511,84216.0,84215.0,8e-05]
[1743817340078,0.08411111,84216.0,84215.0,8e-05]
[1743817340573,0.08411111,84216.0,84215.0,0.00902235]
[1743817340773,0.08411111,84216.0,84215.0,8e-05]
[1743817342978,0.08411111,84216.0,84215.0,0.0334083]
[1743817343286,0.083159,84208.0,84203.0,0.3608]
[1743817343469,0.08411901,84208.0,84206.0,8e-05]
[1743817345183,0.08411901,84208.0,84207.0,0.03437607]
[1743817345379,0.08411901,84208.0,84207.0,0.11347607]
[1743817345682,0.08411901,84208.0,84207.0,0.12256329]
[1743817347883,0.08411901,84208.0,84207.0,0.04346329]
[1743817348083,0.08411901,84208.0,84205.0,8e-05]
[1743817348084,0.36176001,84208.0,84205.0,8e-05]
[1743817348287,0.0831738,84193.0,84192.0,0.1299]
[1743817348474,0.0831738,84193.0,84192.0,0.12998]
[1743817349076,0.0831738,84193.0,84192.0,0.13884343]
[1743817349974,0.08413381,84193.0,84192.0,0.13944343]
[1743817350481,0.08413381,84193.0,84192.0,0.17329348]
[1743817352884,0.23933381,84193.0,84192.0,0.17329348]
[1743817354173,0.23933381,84193.0,84192.0,0.12249348]
[1743817354778,0.00096001,84193.0,84192.0,0.48329348]
[1743817354985,0.0793,84200.0,84192.0,0.56319348]
[1743817355183,0.0831709,84196.0,84192.0,0.56319348]
[1743817355386,0.00096001,84196.0,84192.0,0.56319348]
[1743817357988,0.00096001,84196.0,84192.0,0.20239348]
[1743817358186,0.16433091,84196.0,84195.0,0.3608]
[1743817358492,0.0831738,84193.0,84192.0,0.04271348]
[1743817358680,0.0831758,84191.0,84190.0,0.07474]
[1743817359179,0.0831758,84191.0,84190.0,0.11797798]
[1743817359376,0.2422758,84191.0,84190.0,0.11797798]
[1743817359573,0.2422758,84191.0,84190.0,0.04347798]
[1743817359786,0.0831857,84181.0,84180.0,0.0745]
[1743817359984,0.0831857,84181.0,84180.0,0.0751]
[1743817360184,0.08414571,84181.0,84180.0,0.0751]
[1743817361189,0.15764571,84181.0,84180.0,0.1515]
[1743817361388,0.23654571,84181.0,84180.0,0.1515]
[1743817361987,0.23654571,84181.0,84180.0,0.19316691]
[1743817362891,0.15336001,84181.0,84180.0,0.19316691]
[1743817363186,0.00096001,84181.0,84180.0,0.28508909]
[1743817363488,0.0831746,84193.0,84187.0,0.0831793]
[1743817363685,0.08421461,84193.0,84188.0,0.2269]
[1743817363887,0.00104001,84193.0,84188.0,0.3938572]
[1743817364084,0.00104001,84193.0,84190.0,0.041588]
[1743817364382,0.00104001,84193.0,84192.0,0.0831748]
[1743817364588,0.00104001,84193.0,84192.0,0.1349348]
[1743817364790,0.00104001,84193.0,84192.0,0.2864348]
[1743817365176,0.00104001,84193.0,84192.0,0.20326]
[1743817365381,0.00104001,84193.0,84192.0,0.56406]
[1743817365680,0.083171,84196.0,84192.0,0.56406]
[1743817365875,0.08413101,84196.0,84192.0,0.56406]
[1743817367094,0.0831719,84195.0,84192.0,0.56406]
[1743817367293,0.0841719,84195.0,84192.0,0.56406]
[1743817368295,0.0831731,84194.0,84192.0,0.56406]
[1743817368495,0.00096001,84194.0,84192.0,0.56406]
[1743817368695,0.0831728,84195.0,84192.0,0.56406]
[1743817368994,0.08413281,84195.0,84192.0,0.56406]
[1743817372302,0.00096001,84195.0,84192.0,0.56406]
[1743817373502,0.07526001,84195.0,84192.0,0.56406]
[1743817373999,0.15843221,84195.0,84192.0,0.56406]
[1743817374905,0.15843221,84195.0,84192.0,0.51326]
[1743817375102,0.15843221,84195.0,84193.0,0.0508]
[1743817375305,0.0831729,84194.0,84193.0,0.0508]
[1743817375499,0.0831729,84194.0,84193.0,0.1286]
[1743817376494,0.1590729,84194.0,84193.0,0.1286]
[1743817376694,0.16003291,84194.0,84193.0,0.1286]
[1743817380206,0.16003291,84194.0,84193.0,0.0508]
[1743817381207,0.07686001,84194.0,84192.0,0.3608]
[1743817381406,0.1617738,84193.0,84192.0,0.3608]
[1743817382201,0.16273381,84193.0,84192.0,0.3608]
[1743817385205,0.16273381,84193.0,84192.0,0.34593639]
[1743817386612,0.0831778,84189.0,84188.0,8e-05]
[1743817386915,0.0831827,84184.0,84183.0,0.05088]
[1743817387717,0.2433827,84184.0,84183.0,0.05088]
[1743817388117,0.2433827,84184.0,84183.0,8e-05]
[1743817388308,0.2443827,84184.0,84183.0,8e-05]
[1743817388508,0.2443827,84184.0,84180.0,0.05040239]
[1743817388509,0.0831857,84181.0,84180.0,0.05040239]
[1743817388706,0.0831877,84179.0,84172.0,8e-05]
[1743817389206,0.0831877,84179.0,84178.0,0.36088]
[1743817389407,0.3159877,84179.0,84178.0,0.3697911]
[1743817390221,0.31694771,84179.0,84178.0,0.3703911]
[1743817390518,0.00096001,84179.0,84178.0,0.49551246]
[1743817390713,0.0831802,84187.0,84181.0,0.0831848]
[1743817390919,0.0841802,84187.0,84182.0,0.1558]
[1743817391114,0.0738,84186.0,84182.0,0.15644]
[1743817391416,0.07476001,84186.0,84185.0,0.3608]
[1743817391719,0.15794081,84186.0,84185.0,0.3614]
[1743817391918,0.31264081,84186.0,84185.0,0.3614]
[1743817392711,0.31264081,84186.0,84185.0,0.0006]
[1743817393509,0.67344081,84186.0,84185.0,0.0006]
[1743817393709,0.0831847,84182.0,84178.0,0.05084376]
[1743817393921,0.0831867,84180.0,84179.0,8e-05]
[1743817394219,0.0831906,84176.0,84175.0,0.0508]
[1743817394524,0.0841906,84176.0,84175.0,0.0514]
[1743817395119,0.0841906,84176.0,84175.0,0.05226133]
[1743817395323,0.0832035,84163.0,84162.0,0.3608]
[1743817395623,0.0832035,84163.0,84162.0,0.36990108]
[1743817396519,0.0832035,84163.0,84162.0,0.41286171]
[1743817396716,0.2365035,84163.0,84162.0,0.41286171]
[1743817397918,0.2365035,84163.0,84162.0,0.05206171]
[1743817398117,0.0832084,84158.0,84157.0,0.0508]
[1743817398314,0.0843684,84158.0,84157.0,0.1284]
[1743817399010,0.2331684,84158.0,84157.0,0.1284]
[1743817399605,0.14996,84158.0,84157.0,0.1284]
[1743817399811,0.00116,84158.0,84157.0,0.1371312]
[1743817400016,0.04177868,84166.0,84157.0,0.1371312]
[1743817400017,0.0832047,84162.0,84157.0,0.2148312]
[1743817400618,0.0832058,84161.0,84157.0,0.2148312]
[1743817401121,0.0832058,84161.0,84157.0,0.25709054]
[1743817405317,0.0781,84160.0,84157.0,0.25769054]
[1743817405514,0.07926,84160.0,84157.0,0.25769054]
[1743817408123,0.1624668,84160.0,84157.0,0.25769054]
[1743817409225,0.0738,84159.0,84157.0,0.25769054]
[1743817409417,0.07496,84159.0,84157.0,0.25769054]
[1743817409618,0.0744,84158.0,84157.0,0.25769054]
[1743817409828,0.07556,84158.0,84157.0,0.25769054]
[1743817412428,0.15256,84158.0,84157.0,0.25769054]
[1743817412627,0.15256,84158.0,84157.0,0.61849054]
[1743817413124,0.07556,84158.0,84157.0,0.61849054]
[1743817413318,0.0744,84158.0,84157.0,0.61849054]
[1743817413518,0.07556,84158.0,84157.0,0.61849054]
[1743817413927,0.07556,84158.0,84157.0,0.25769054]
[1743817414128,0.07556,84158.0,84157.0,0.61849054]
[1743817414520,0.07556,84158.0,84157.0,0.56769054]
[1743817414720,0.07556,84158.0,84157.0,0.61849054]
[1743817414925,0.07556,84158.0,84157.0,0.25769054]
[1743817415224,0.07556,84158.0,84157.0,0.61849054]
[1743817418221,0.15146,84158.0,84157.0,0.61849054]
[1743817418825,0.15146,84158.0,84157.0,0.25769054]
[1743817419029,0.15146,84158.0,84157.0,0.61849054]
[1743817420527,0.07556,84158.0,84157.0,0.61849054]
[1743817421435,0.0415988,84169.0,84158.0,0.0416041]
[1743817421624,0.08337868,84166.0,84165.0,0.3608]
[1743817423135,0.0832026,84164.0,84161.0,0.1493]
[1743817423531,0.1556,84163.0,84161.0,0.1493]
[1743817424136,0.1556,84163.0,84162.0,0.3608]
[1743817424539,0.2388035,84163.0,84162.0,0.4335]
[1743817425636,0.2388035,84163.0,84162.0,0.43418]
[1743817426039,0.2388035,84163.0,84162.0,0.07338]
[1743817426240,0.2396035,84163.0,84162.0,0.43418]
[1743817426442,0.2388035,84163.0,84162.0,0.43418]
[1743817426940,0.1556,84163.0,84162.0,0.43418]
[1743817427637,0.1556,84163.0,84162.0,0.07338]
[1743817427831,0.1564,84163.0,84162.0,0.43418]
[1743817428033,0.1556,84163.0,84162.0,0.43418]
[1743817429137,0.1556,84163.0,84162.0,0.07338]
[1743817429440,0.1564,84163.0,84162.0,0.43418]
[1743817429737,0.1556,84163.0,84162.0,0.43418]
[1743817431944,0.2396035,84163.0,84162.0,0.43418]
[1743817435943,0.2396035,84163.0,84162.0,0.36148]
[1743817438450,0.2396035,84163.0,84159.0,8e-05]
[1743817438451,0.0832065,84160.0,84159.0,8e-05]
[1743817438634,0.0832223,84144.0,84143.0,0.074]
[1743817438942,0.0832223,84144.0,84143.0,0.10935586]
[1743817439141,0.0832223,84144.0,84143.0,0.10927586]
[1743817439534,0.2321223,84144.0,84143.0,0.10927586]
[1743817440136,0.2321223,84144.0,84143.0,0.10995586]
[1743817440137,0.2332023,84144.0,84143.0,0.10995586]
[1743817441737,0.2332023,84144.0,84143.0,0.11902325]
[1743817444750,0.2332023,84144.0,84143.0,0.04502325]
[1743817449853,0.14998,84144.0,84143.0,0.04502325]
[1743817450055,0.14998,84144.0,84143.0,0.19262325]
[1743817450248,0.2321223,84144.0,84143.0,0.19262325]
[1743817450444,0.2331223,84144.0,84143.0,0.19262325]
[1743817451847,0.1499,84144.0,84143.0,0.19262325]
[1743817452047,0.0744,84144.0,84143.0,0.19262325]
[1743817452247,0.1576223,84144.0,84143.0,0.19262325]
[1743817452846,0.1576223,84144.0,84143.0,0.04502325]
[1743817453555,0.2317223,84144.0,84143.0,0.04502325]
[1743817462750,0.2317223,84144.0,84143.0,0.04434325]
[1743817463053,0.0832243,84142.0,84141.0,8e-05]
[1743817463264,0.08426431,84142.0,84141.0,8e-05]
[1743817463763,0.0832302,84136.0,84135.0,0.0786]
[1743817464561,0.0832302,84136.0,84135.0,0.08751314]
[1743817464766,0.2337302,84136.0,84135.0,0.08751314]
[1743817465361,0.5955302,84136.0,84135.0,0.04643219]
[1743817465549,0.5955302,84136.0,84135.0,0.04583219]
[1743817465750,0.0832322,84134.0,84133.0,0.076]
[1743817465945,0.0843122,84134.0,84133.0,0.076]
[1743817466362,0.2349122,84134.0,84133.0,0.07608]
[1743817466761,0.2349122,84134.0,84133.0,0.08517072]
[1743817467765,0.2349122,84134.0,84133.0,0.07029566]
[1743817468063,0.2349122,84134.0,84133.0,0.07089566]
[1743817468460,0.2349122,84134.0,84133.0,0.10769888]
[1743817473055,0.2349122,84134.0,84133.0,0.17969888]
[1743817485070,0.2349122,84134.0,84133.0,0.10769888]
[1743817493281,0.00108,84134.0,84133.0,0.10769888]
[1743817493480,0.0715,84139.0,84133.0,0.10769888]
[1743817493786,0.0416147,84137.0,84133.0,0.10769888]
[1743817493985,0.0832316,84135.0,84134.0,0.0784]
[1743817494379,0.0832316,84135.0,84134.0,0.154]
[1743817494580,0.0842316,84135.0,84134.0,0.154]
[1743817497886,0.0842316,84135.0,84134.0,0.0756]
[1743817498091,0.0832322,84134.0,84133.0,0.04597394]
[1743817498296,0.0832322,84134.0,84133.0,0.04589394]
[1743817498591,0.0832322,84134.0,84131.0,0.3608]
[1743817498592,0.0832342,84132.0,84131.0,0.3608]
[1743817500389,0.0843142,84132.0,84131.0,0.37052152]
[1743817500693,0.0843142,84132.0,84131.0,0.40207163]
[1743817502191,0.0843142,84132.0,84131.0,0.04127163]
[1743817502395,0.0843142,84132.0,84131.0,0.04059163]
[1743817502596,0.0832351,84131.0,84130.0,8e-05]
[1743817502787,0.2397351,84131.0,84130.0,0.36088]
[1743817502988,0.2397351,84131.0,84130.0,0.36148]
[1743817504989,0.2397351,84131.0,84130.0,0.00068]
[1743817505195,0.2397351,84131.0,84130.0,0.36088]
[1743817505595,0.2397351,84131.0,84130.0,0.36975197]
[1743817506086,0.2397351,84131.0,84130.0,0.40144311]
[1743817508392,0.001,84131.0,84130.0,0.40144311]
[1743817508599,0.1486,84141.0,84130.0,0.47634311]
[1743817508793,0.0741,84137.0,84131.0,0.0747]
[1743817508998,0.0832346,84132.0,84131.0,0.0747]
[1743817509200,0.0832346,84132.0,84131.0,0.1497]
[1743817509902,0.08427461,84132.0,84131.0,0.1497]
[1743817510098,0.08427461,84132.0,84131.0,0.1503]
[1743817512399,0.08427461,84132.0,84131.0,0.2247]
[1743817520613,0.16317461,84132.0,84131.0,0.2247]
[1743817530015,0.16317461,84132.0,84131.0,0.20982658]
[1743817532515,0.23457461,84132.0,84131.0,0.13482658]
[1743817533124,0.23457461,84132.0,84131.0,0.49562658]
[1743817533312,0.23457461,84132.0,84131.0,0.4358]
[1743817534814,0.23457461,84132.0,84131.0,0.075]
[1743817535124,0.23457461,84132.0,84131.0,0.4358]
[1743817537425,0.23457461,84132.0,84131.0,0.3614]
[1743817537725,0.23457461,84132.0,84131.0,0.0006]
[1743817537927,0.0832351,84131.0,84130.0,0.04064311]
[1743817538118,0.08427511,84131.0,84130.0,0.04064311]
[1743817538319,0.23377511,84131.0,84130.0,0.04064311]
[1743817539325,0.23377511,84131.0,84130.0,8e-05]
[1743817539520,0.19215801,84131.0,84128.0,0.00067433]
[1743817539730,0.0832371,84129.0,84128.0,0.00067433]
[1743817540223,0.08427711,84129.0,84128.0,0.00059433]
[1743817541827,0.44507711,84129.0,84128.0,0.00059433]
[1743817543524,0.44507711,84129.0,84128.0,0.02853615]
[1743817543733,0.44507711,84129.0,84128.0,0.03738347]
[1743817544427,0.44507711,84129.0,84126.0,8e-05]
[1743817544629,0.0832421,84124.0,84123.0,0.02805175]
[1743817544826,0.08325,84116.0,84115.0,0.3608]
[1743817545514,0.08425,84116.0,84115.0,0.3608]
[1743817545719,0.23525,84116.0,84115.0,0.00894192]
[1743817545914,0.0832599,84106.0,84102.0,0.00059451]
[1743817546630,0.0832599,84106.0,84105.0,0.36986688]
[1743817548629,0.0832599,84106.0,84105.0,0.39786645]
[1743817550022,0.0843399,84106.0,84105.0,0.39854645]
[1743817558541,0.2388399,84106.0,84105.0,0.39854645]
[1743817561550,0.1611399,84106.0,84105.0,0.38366734]
[1743817562150,0.2328399,84106.0,84105.0,0.38366734]
[1743817570854,0.2328399,84106.0,84105.0,0.03774645]
[1743817573148,0.2328399,84106.0,84105.0,0.03706645]
[1743817573347,0.0832609,84105.0,84104.0,0.0746]
[1743817573548,0.0842609,84105.0,84104.0,0.0746]
[1743817573748,0.2314609,84105.0,84104.0,0.0746]
[1743817575855,0.1482,84105.0,84102.0,0.00059451]
[1743817576045,0.1482,84105.0,84100.0,0.1]
[1743817576046,0.0832648,84101.0,84100.0,0.1]
[1743817576252,0.0843448,84101.0,84100.0,0.1]
[1743817576958,0.2280448,84101.0,84100.0,0.1]
[1743817577658,0.2280448,84101.0,84100.0,0.1279994]
[1743817578653,0.2280448,84101.0,84100.0,0.13702872]
[1743817579050,0.14478,84101.0,84095.0,8e-05]
[1743817579253,0.0832698,84096.0,84095.0,3.947e-05]
[1743817579959,0.08430981,84096.0,84095.0,0.00067947]
[1743817580149,0.23450981,84096.0,84095.0,0.00067947]
[1743817581350,0.23450981,84096.0,84095.0,0.00966058]
[1743817582160,0.23450981,84096.0,84095.0,0.03779729]
[1743817586464,0.30740981,84096.0,84095.0,0.03779729]
[1743817588369,0.23450981,84096.0,84095.0,0.03779729]
[1743817591870,0.23450981,84096.0,84095.0,0.03715729]
[1743817597781,0.59530981,84096.0,84095.0,0.03715729]
[1743817602579,0.23450981,84096.0,84095.0,0.03715729]
[1743817602773,0.59530981,84096.0,84095.0,0.03715729]
[1743817607090,0.23450981,84096.0,84095.0,0.03715729]
[1743817607391,0.59530981,84096.0,84095.0,0.03715729]
[1743817610787,0.59530981,84096.0,84095.0,0.00902058]
[1743817611004,0.0832737,84092.0,84091.0,8e-05]
[1743817611210,0.0832797,84086.0,84080.0,0.05076]
[1743817611505,0.0832797,84086.0,84085.0,0.11601069]
[1743817611905,0.0843597,84086.0,84085.0,0.11601069]
[1743817612102,0.2329597,84086.0,84085.0,0.11601069]
[1743817613107,0.2329597,84086.0,84085.0,0.10112792]
[1743817614311,0.2329597,84086.0,84085.0,0.17452792]
[1743817620013,0.0843597,84086.0,84085.0,0.17452792]
[1743817624116,0.0843597,84086.0,84085.0,0.11761069]
[1743817628420,0.0843597,84086.0,84085.0,0.04421069]
[1743817628721,0.0832807,84085.0,84084.0,8e-05]
[1743817628921,0.2264807,84085.0,84084.0,8e-05]
[1743817629722,0.2274807,84085.0,84084.0,8e-05]
[1743817630518,0.2274807,84085.0,84084.0,0.03471999]